Department Family,Entity,Invoice Date,Consolidated Expense Type,Expense area,Supplier,Purchase Invoice Number,"Invoice Value
�",Description,,
Department of Health,HSCIC,15/06/2015,Health Surveys,Population Health,NATIONAL CENTRE FOR SOCIAL RESEARCH,51993,"1,204,020.00",Health Surveys,,
Department of Health,HSCIC,31/12/2015,Computer Software/License,IT Services,SOFTCAT LTD,INV01290304,"1,101,749.71",Computer Software/License,,
Department of Health,HSCIC,09/12/2015,Health Surveys,Population Health,NATIONAL CENTRE FOR SOCIAL RESEARCH,52393,"780,368.00",Health Surveys,,
Department of Health,HSCIC,17/03/2015,Health Surveys,Population Health,NATIONAL CENTRE FOR SOCIAL RESEARCH,51826,"764,039.00",Health Surveys,,
Department of Health,HSCIC,22/09/2015,Health Surveys,Population Health,NATIONAL CENTRE FOR SOCIAL RESEARCH,52176,"609,020.00",Health Surveys,,
Department of Health,HSCIC,30/10/2015,IT Additions,Capital Expenditure,SOFTCAT LTD,INV01254975,"594,132.49",IT Additions,,
Department of Health,HSCIC,21/03/2016,Health Surveys,Population Health,NATIONAL CENTRE FOR SOCIAL RESEARCH,52582,"535,655.00",Health Surveys,,
Department of Health,HSCIC,17/03/2015,Health Surveys,Population Health,NATIONAL CENTRE FOR SOCIAL RESEARCH,51827,"533,200.00",Health Surveys,,
Department of Health,HSCIC,05/11/2015,Subscriptions,Information Standards Delivery,INTERNATIONAL HEALTH TERMINOLOGY STANDARDS DEVELOPMENT ORGANISATION,2016025,"518,551.95",Subscriptions,,
Department of Health,HSCIC,26/10/2015,Computer Software/License,IT Services,INSIGHT DIRECT (UK) LTD,2615489,"429,845.00",Computer Software/License,,
Department of Health,HSCIC,02/09/2015,Computer Software/License,IT Services,SAS SOFTWARE LTD,1501313,"425,977.00",Computer Software/License,,
Department of Health,HSCIC,30/11/2015,Computer Maintenance,General Practice Extraction Service,CSC COMPUTER SCIENCES LTD,5201433289,"415,826.72",Computer Maintenance,,
Department of Health,HSCIC,31/12/2015,Health Surveys,Population Health,NATIONAL CENTRE FOR SOCIAL RESEARCH,52443,"405,650.00",Health Surveys,,
Department of Health,HSCIC,25/03/2015,IT Additions,Capital Expenditure,COMPUTACENTER (UK) LTD,3880470204,"404,267.36",IT Additions,,
Department of Health,HSCIC,31/03/2015,Computer Software/License,Technical Architecture,GS1 UK,140190594,"394,502.00",Computer Software/License,,
Department of Health,HSCIC,14/04/2015,Computer Software/License,Intersystems MSM,INSIGHT DIRECT (UK) LTD,2328154,"387,573.85",Computer Software/License,,
Department of Health,HSCIC,31/10/2015,Travel,Various,REDFERN TRAVEL LTD,628,"380,067.24",Travel,,
Department of Health,HSCIC,25/03/2015,Fixtures & Fittings Additions,Capital Expenditure,BROADSTOCK OFFICE FURNITURE LTD,BFI250315,"376,654.00",Fixtures & Fittings Additions,,
Department of Health,HSCIC,29/02/2016,Travel,Various,REDFERN TRAVEL LTD,1198,"356,534.81",Travel,,
Department of Health,HSCIC,30/11/2015,Travel,Various,REDFERN TRAVEL LTD,748,"350,630.55",Travel,,
Department of Health,HSCIC,01/11/2015,Workpackage,Spine 2 ,INFINITY WORKS CONSULTING,208,"347,575.00",Workpackage,,
Department of Health,HSCIC,01/03/2016,Rates,Estates & Facilities,LEEDS CITY COUNCIL,901525283010316000000,"345,415.00",Rates,,
Department of Health,HSCIC,16/06/2015,Rent & Rates,Estates & Facilities,DEPARTMENT OF HEALTH,212918,"345,142.75",Rent & Rates,,
Department of Health,HSCIC,16/06/2015,Rent & Rates,Estates & Facilities,DEPARTMENT OF HEALTH,212919,"344,708.96",Rent & Rates,,
Department of Health,HSCIC,02/03/2015,Rates,Estates & Facilities,LEEDS CITY COUNCIL,901525283020315000000,"342,635.00",Rates,,
Department of Health,HSCIC,16/06/2015,Rent & Rates,Estates & Facilities,DEPARTMENT OF HEALTH,212920,"341,179.06",Rent & Rates,,
Department of Health,HSCIC,06/08/2015,IT Additions,Capital Expenditure,COMPUTACENTER (UK) LTD,3880590204,"341,075.22",IT Additions,,
Department of Health,HSCIC,16/06/2015,Rent & Rates,Estates & Facilities,DEPARTMENT OF HEALTH,212921,"338,740.31",Rent & Rates,,
Department of Health,HSCIC,31/12/2015,Computer Software/License,IT Services,SOFTCAT LTD,INV01289890,"338,262.22",Computer Software/License,,
Department of Health,HSCIC,01/12/2015,Workpackage,Spine 2 ,INFINITY WORKS CONSULTING,216,"327,797.50",Workpackage,,
Department of Health,HSCIC,30/06/2015,Contract Other External,CHRIS Service Management,IDENTITY & PASSPORT SERVICE,IPSGR0000796,"316,909.00",Contract Other External,,
Department of Health,HSCIC,30/06/2015,Travel,Various,REDFERN TRAVEL LTD,109273,"313,461.58",Travel,,
Department of Health,HSCIC,31/07/2015,Travel,Various,REDFERN TRAVEL LTD,272,"311,766.74",Travel,,
Department of Health,HSCIC,01/03/2016,Workpackage,Spine 2 ,INFINITY WORKS CONSULTING,291,"302,545.00",Workpackage,,
Department of Health,HSCIC,30/11/2015,IT Additions,Capital Expenditure,SOFTCAT LTD,INV01272090,"302,422.00",IT Additions,,
Department of Health,HSCIC,30/09/2015,Travel,Various,REDFERN TRAVEL LTD,473,"300,976.61",Travel,,
Department of Health,HSCIC,17/11/2015,Data Lines,IT Services,BT PLC,399268,"299,438.00",Data Lines,,
Department of Health,HSCIC,31/01/2016,Travel,Various,REDFERN TRAVEL LTD,1075,"298,455.39",Travel,,
Department of Health,HSCIC,30/10/2015,Fixtures & Fittings Additions,Capital Expenditure,KIER FACILITIES SERVICES LTD,15041103,"297,558.48",Fixtures & Fittings Additions,,
Department of Health,HSCIC,12/01/2016,Travel,Various,WEST YORKSHIRE COMBINED AUTHORITY,PPCS4729,"288,551.20",Travel,,
Department of Health,HSCIC,10/11/2015,Data Lines,IT Services,BT PLC,397879,"285,906.00",Data Lines,,
Department of Health,HSCIC,13/07/2015,Data Services,General Practice Extraction Service,EMIS (EGTON MEDICAL INFORMATION SYSTEMS LTD),IN9121911,"284,475.60",Data Services,,
Department of Health,HSCIC,01/09/2015,Data Services,General Practice Extraction Service,EMIS (EGTON MEDICAL INFORMATION SYSTEMS LTD),IN9121921,"284,475.60",Data Services,,
Department of Health,HSCIC,01/10/2015,Data Services,General Practice Extraction Service,EMIS (EGTON MEDICAL INFORMATION SYSTEMS LTD),IN9357311,"284,475.60",Data Services,,
Department of Health,HSCIC,19/01/2016,Data Services,General Practice Extraction Service,EMIS (EGTON MEDICAL INFORMATION SYSTEMS LTD),SINV001041,"284,475.60",Data Services,,
Department of Health,HSCIC,01/04/2015,Data Services,General Practice Extraction Service,EMIS (EGTON MEDICAL INFORMATION SYSTEMS LTD),IN8755221,"281,930.70",Data Services,,
Department of Health,HSCIC,31/03/2015,Computer Software/License,IT Services,SOFTCAT LTD,INV01125906,"281,729.52",Computer Software/License,,
Department of Health,HSCIC,20/04/2015,Health Surveys,Population Health,NATIONAL CENTRE FOR SOCIAL RESEARCH,51912,"280,000.00",Health Surveys,,
Department of Health,HSCIC,26/06/2015,Computer Software/License,IT Services,INSIGHT DIRECT (UK) LTD,2440005,"275,418.55",Computer Software/License,,
Department of Health,HSCIC,22/07/2015,Health Surveys,Population Health,NATIONAL CENTRE FOR SOCIAL RESEARCH,52050,"271,850.00",Health Surveys,,
Department of Health,HSCIC,01/02/2016,Workpackage,Spine 2 ,INFINITY WORKS CONSULTING,266,"271,765.00",Workpackage,,
Department of Health,HSCIC,01/10/2015,Workpackage,Spine 2,INFINITY WORKS CONSULTING,194,"268,815.00",Workpackage,,
Department of Health,HSCIC,29/06/2015,Computer Software/License,IT Services,SOFTCAT LTD,INV01175597,"265,118.56",Computer Software/License,,
Department of Health,HSCIC,31/05/2015,Travel,Various,REDFERN TRAVEL LTD,107368,"264,919.81",Travel,,
Department of Health,HSCIC,01/07/2015,Workpackage,Operations & Technical Services,XML SOLUTIONS LTD,IC1007,"258,739.38",Workpackage,,
Department of Health,HSCIC,07/12/2015,IT Additions,Capital Expenditure,SOFTCAT LTD,INV01276182,"256,561.50",IT Additions,,
Department of Health,HSCIC,01/06/2015,Workpackage,Operations & Technical Services,XML SOLUTIONS LTD,IC1006,"256,198.13",Workpackage,,
Department of Health,HSCIC,01/03/2016,Rates,Estates & Facilities,LEEDS CITY COUNCIL,901623625010316000000,"253,470.00",Rates,,
Department of Health,HSCIC,31/03/2015,IT Additions,Capital Expenditure,PROBRAND LTD,OPI505024,"252,200.00",IT Additions,,
Department of Health,HSCIC,01/01/2016,Workpackage,Spine 2 ,INFINITY WORKS CONSULTING,234,"251,237.50",Workpackage,,
Department of Health,HSCIC,29/05/2015,Workpackage,Spine 2,DEPARTMENT OF HEALTH,212866,"251,002.22",Workpackage,,
Department of Health,HSCIC,01/04/2015,Workpackage,Operations & Technical Services,XML SOLUTIONS LTD,IC1004,"249,943.38",Workpackage,,
Department of Health,HSCIC,31/12/2015,IT Additions,Capital Expenditure,SOFTCAT LTD,INV01289618,"249,256.50",IT Additions,,
Department of Health,HSCIC,01/03/2016,Rates,Estates & Facilities,LEEDS CITY COUNCIL,900814724010316000000,"244,772.50",Rates,,
Department of Health,HSCIC,31/03/2015,Travel,Various,REDFERN TRAVEL LTD,104727,"241,821.04",Travel,,
Department of Health,HSCIC,09/02/2016,Rent & Rates,Estates & Facilities,DEPARTMENT OF HEALTH,213772,"240,712.23",Rent & Rates,,
Department of Health,HSCIC,31/12/2015,Travel,Various,REDFERN TRAVEL LTD,908,"239,435.27",Travel,,
Department of Health,HSCIC,09/02/2016,Rent & Rates,Estates & Facilities,DEPARTMENT OF HEALTH,213768,"239,284.49",Rent & Rates,,
Department of Health,HSCIC,01/05/2015,Workpackage,Operations & Technical Services,XML SOLUTIONS LTD,IC1005,"235,118.88",Workpackage,,
Department of Health,HSCIC,31/03/2015,IT Additions,Capital Expenditure,PROBRAND LTD,OPI505066,"231,866.11",IT Additions,,
Department of Health,HSCIC,07/03/2016,Data Services,General Practice Extraction Service,CSC COMPUTER SCIENCES LTD,5201444243,"231,694.21",Data Services,,
Department of Health,HSCIC,09/02/2016,Rent & Rates,Estates & Facilities,DEPARTMENT OF HEALTH,213770,"230,265.30",Rent & Rates,,
Department of Health,HSCIC,28/03/2015,Course Fees,Organisation development & training,CAPITA BUSINESS SERVICES LTD,A66723,"229,864.57",Course Fees,,
Department of Health,HSCIC,16/03/2016,Health Surveys,Population Health,NATIONAL CENTRE FOR SOCIAL RESEARCH,52554,"227,560.00",Health Surveys,,
Department of Health,HSCIC,28/05/2015,Rent,Estates & Facilities,MWB BUSINESS EXCHANGE CENTRES LTD,235578,"224,337.84",Rent,,
Department of Health,HSCIC,31/07/2015,Workpackage,Spine 2 ,INFINITY WORKS CONSULTING,INVOICE156,"222,945.00",Workpackage,,
Department of Health,HSCIC,29/12/2015,Data Lines,IT Services,BT PLC,402008,"217,667.00",Data Lines,,
Department of Health,HSCIC,30/03/2015,Computer Software/License,IT Services,INSIGHT DIRECT (UK) LTD,2308802,"216,809.64",Computer Software/License,,
Department of Health,HSCIC,12/06/2015,Computer Software/License,HSCN,PRICEWATERHOUSE COOPERS,1354390512,"214,923.90",Computer Software/License,,
Department of Health,HSCIC,01/09/2015,Workpackage,Spine 2 ,INFINITY WORKS CONSULTING,166,"209,600.00",Workpackage,,
Department of Health,HSCIC,01/04/2015,Travel,Various,REDFERN TRAVEL LTD,102758,"209,534.55",Travel,,
Department of Health,HSCIC,08/02/2016,Rates,Estates & Facilities,LEEDS CITY COUNCIL,901623625080216000000,"209,525.00",Rates,,
Department of Health,HSCIC,01/06/2015,Rent,Estates & Facilities,PETIT PAPILLON MANAGEMENT LTD,10592,"205,758.88",Rent,,
Department of Health,HSCIC,09/12/2015,Rent,Estates & Facilities,PETIT PAPILLON MANAGEMENT LTD,11358,"205,758.88",Rent,,
Department of Health,HSCIC,04/03/2016,Rent,Estates & Facilities,PETIT PAPILLON MANAGEMENT LTD,11635,"205,758.88",Rent,,
Department of Health,HSCIC,24/04/2015,Rent,Estates & Facilities,MWB BUSINESS EXCHANGE CENTRES LTD,23541071,"203,250.10",Rent,,
Department of Health,HSCIC,08/12/2014,Assets Under Construction,Capital Expenditure,ATOS IT SERVICES UK LTD,5584173343,"199,462.49",Assets Under Construction,,
Department of Health,HSCIC,10/07/2015,External Consultancy Fees,Infrastructure,CONTEXT INFORMATION SECURITY LTD,5387,"198,000.00",External Consultancy Fees,,
Department of Health,HSCIC,03/06/2015,Rent,Estates & Facilities,EVERSHEDS LLP,12000713,"197,592.61",Rent,,
Department of Health,HSCIC,02/09/2015,Rent,Estates & Facilities,EVERSHEDS LLP,12000728,"197,592.61",Rent,,
Department of Health,HSCIC,25/11/2015,Rent,Estates & Facilities,EVERSHEDS LLP,12000757,"197,592.61",Rent,,
Department of Health,HSCIC,18/02/2016,Rent,Estates & Facilities,EVERSHEDS LLP,12000795,"196,901.63",Rent,,
Department of Health,HSCIC,29/07/2015,Legal / Professional Fees,HSCN,DELOITTE LLP,2410092778,"193,098.40",Legal / Professional Fees,,
Department of Health,HSCIC,21/09/2015,Legal / Professional Fees,Infrastructure,BT GLOBAL SERVICES,395068,"192,414.00",Legal / Professional Fees,,
Department of Health,HSCIC,25/03/2015,Computer Software/License,Service Management,SOFTCAT LTD,INV01120450,"190,968.00",Computer Software/License,,
Department of Health,HSCIC,03/03/2016,Computer Software/License,IT Services,SOFTCAT LTD,INV013296,"190,968.00",Computer Software/License,,
Department of Health,HSCIC,07/12/2015,IT Additions,Capital Expenditure,SOFTCAT LTD,INV01276181,"188,211.75",IT Additions,,
Department of Health,HSCIC,31/08/2015,Travel,Various,REDFERN TRAVEL LTD,368,"187,290.45",Travel,,
Department of Health,HSCIC,31/12/2015,IT Additions,Capital Expenditure,SOFTCAT LTD,INV01289619,"184,168.62",IT Additions,,
Department of Health,HSCIC,15/07/2015,IT Additions,Capital Expenditure,SOFTCAT LTD,INV01186558,"183,605.00",IT Additions,,
Department of Health,HSCIC,31/07/2015,Rent,Estates & Facilities,AMAS LTD,1172119,"177,000.00",Rent,,
Department of Health,HSCIC,04/11/2015,Rent,Estates & Facilities,AMAS LTD,1177613,"177,000.00",Rent,,
Department of Health,HSCIC,22/02/2016,Rent,Estates & Facilities,AMAS LTD,1181261,"177,000.00",Rent,,
Department of Health,HSCIC,24/07/2015,Rent,Estates & Facilities,AMAS LTD,1171979,"176,748.62",Rent,,
Department of Health,HSCIC,13/10/2015,Rent,Estates & Facilities,HOME OFFICE,IPSGR0000858,"176,219.00",Rent,,
Department of Health,HSCIC,13/03/2015,Rent,Estates & Facilities,EVERSHEDS LLP,12000685,"170,863.61",Rent,,
Department of Health,HSCIC,25/08/2015,Rent,Estates & Facilities,REGUS (UK) LTD,23541247,"170,014.08",Rent,,
Department of Health,HSCIC,04/06/2015,Computer Software/License,IT Services,SOFTCAT LTD,INV01152202,"169,861.73",Computer Software/License,,
Department of Health,HSCIC,21/03/2016,Health Surveys,Population Health,NATIONAL CENTRE FOR SOCIAL RESEARCH,52583,"169,463.00",Health Surveys,,
Department of Health,HSCIC,25/05/2015,Rent,Estates & Facilities,REGUS (UK) LTD,23541118,"169,375.08",Rent,,
Department of Health,HSCIC,25/06/2015,Rent,Estates & Facilities,REGUS (UK) LTD,23541162,"169,375.08",Rent,,
Department of Health,HSCIC,24/07/2015,Rent,Estates & Facilities,REGUS (UK) LTD,23541202,"169,375.08",Rent,,
Department of Health,HSCIC,28/04/2015,IT Additions,Capital Expenditure,PROBRAND LTD,OPI507090,"165,297.39",IT Additions,,
Department of Health,HSCIC,26/03/2015,Computer Hardware,IT Services,PROBRAND LTD,OPI504466,"161,806.09",Computer Hardware,,
Department of Health,HSCIC,18/06/2015,Health Surveys,Population Health,NATIONAL CENTRE FOR SOCIAL RESEARCH,51999,"160,000.00",Health Surveys,,
Department of Health,HSCIC,13/10/2015,Contract Other External,CHRIS Service Management,IDENTITY & PASSPORT SERVICE,IPSGR0000859,"158,454.50",Contract Other External,,
Department of Health,HSCIC,28/04/2015,Data Services,General Practice Extraction Service,UNIVERSITY OF NOTTINGHAM,7706650,"157,995.00",Data Services,,
Department of Health,HSCIC,11/06/2015,External Consultancy Fees,Infrastructure,CONTEXT INFORMATION SECURITY LTD,5275,"156,750.00",External Consultancy Fees,,
Department of Health,HSCIC,30/11/2015,Fixtures & Fittings Additions,Capital Expenditure,KIER FACILITIES SERVICES LTD,15051152,"152,095.45",Fixtures & Fittings Additions,,
Department of Health,HSCIC,19/10/2015,Workpackage,HSCN,DELOITTE MCS LTD,2410095884,"151,445.73",Workpackage,,
Department of Health,HSCIC,29/02/2016,Rent,Estates & Facilities,REGUS (UK) LTD,23541510,"151,251.04",Rent,,
Department of Health,HSCIC,30/11/2015,Workpackage,IT Development,SYSTEM DYNAMICS UK LTD,380,"150,128.70",Workpackage,,
Department of Health,HSCIC,11/12/2015,External Consultancy Fees,Infrastructure,QINETIQ LTD,117043756,"150,000.00",External Consultancy Fees,,
Department of Health,HSCIC,21/07/2015,Computer Hardware,IT Services,PROBRAND LTD,OPI514903,"149,797.36",Computer Hardware,,
Department of Health,HSCIC,23/12/2015,Rent,Estates & Facilities,REGUS (UK) LTD,23541425,"149,489.08",Rent,,
Department of Health,HSCIC,25/09/2015,Rent,Estates & Facilities,REGUS (UK) LTD,23541292,"148,134.08",Rent,,
Department of Health,HSCIC,23/10/2015,Rent,Estates & Facilities,REGUS (UK) LTD,23541330,"148,134.08",Rent,,
Department of Health,HSCIC,25/11/2015,Rent,Estates & Facilities,REGUS (UK) LTD,23541372,"148,134.08",Rent,,
Department of Health,HSCIC,29/01/2016,Rent,Estates & Facilities,REGUS (UK) LTD,23541468,"148,134.08",Rent,,
Department of Health,HSCIC,23/12/2015,Contingent Labour,Various,CAPITA BUSINESS SERVICES LTD,LO10085204,"148,092.13",Contingent Labour,,
Department of Health,HSCIC,29/10/2015,Legal / Professional Fees,Commercial  LSP NME,DLA PIPER UK LLP,54794315,"147,712.40",Legal / Professional Fees,,
Department of Health,HSCIC,26/03/2015,Computer Hardware,IT Services,SPECIALIST COMPUTER CENTRES PLC,OPL982593,"147,305.25",Computer Hardware,,
Department of Health,HSCIC,05/01/2016,Rent,Estates & Facilities,HM LAND REGISTRY,1142009,"146,700.00",Rent,,
Department of Health,HSCIC,31/07/2015,Computer Hardware,IT Services,CSA WAVERLEY LTD,IN661605,"146,630.00",Computer Hardware,,
Department of Health,HSCIC,31/07/2015,IT Additions,Capital Expenditure,PROBRAND LTD,OPI516098,"146,216.74",IT Additions,,
Department of Health,HSCIC,31/12/2015,Workpackage,IT Development,SYSTEM DYNAMICS UK LTD,383,"144,495.25",Workpackage,,
Department of Health,HSCIC,04/09/2015,Rent,Estates & Facilities,PETIT PAPILLON MANAGEMENT LTD,10916,"143,899.81",Rent,,
Department of Health,HSCIC,24/02/2016,Computer Maintenance,IT Services,TOTAL INTELLIGENCE LTD,45,"143,314.00",Computer Maintenance,,
Department of Health,HSCIC,29/01/2016,Computer Software/License,IT Services,SOFTCAT LTD,INV01309275,"140,555.70",Computer Software/License,,
Department of Health,HSCIC,18/12/2015,Computer Hardware,IT Services,PROBRAND LTD,OPI528291,"139,984.11",Computer Hardware,,
Department of Health,HSCIC,21/04/2015,Rent,Hosting & Infrastructure,HM LAND REGISTRY,1135227,"139,500.00",Rent,,
Department of Health,HSCIC,09/07/2015,Rent,Estates & Facilities,HM LAND REGISTRY,1137679,"139,500.00",Rent,,
Department of Health,HSCIC,08/10/2015,Rent,Estates & Facilities,HM LAND REGISTRY,1140068,"139,500.00",Rent,,
Department of Health,HSCIC,24/02/2016,Contingent Labour,Various,CAPITA BUSINESS SERVICES LTD,LO10096740,"137,504.92",Contingent Labour,,
Department of Health,HSCIC,10/12/2015,IT Additions,Capital Expenditure,CSA WAVERLEY LTD,IN662359,"137,424.00",IT Additions,,
Department of Health,HSCIC,27/01/2016,Contingent Labour,Various,CAPITA BUSINESS SERVICES LTD,LO10091258,"135,194.62",Contingent Labour,,
Department of Health,HSCIC,01/02/2016,Data Lines,IT Services,REDCENTRIC,ISIN10335,"134,759.79",Data Lines,,
Department of Health,HSCIC,02/03/2016,Contingent Labour,Various,CAPITA BUSINESS SERVICES LTD,LO10098425,"133,466.96",Contingent Labour,,
Department of Health,HSCIC,01/02/2016,Data Lines,IT Services,REDCENTRIC,ISIN10336,"133,181.48",Data Lines,,
Department of Health,HSCIC,21/08/2015,Computer Hardware,IT Services,PROBRAND LTD,OP1517559,"132,378.42",Computer Hardware,,
Department of Health,HSCIC,03/03/2016,Workpackage,IT Development,SYSTEM DYNAMICS UK LTD,398,"131,995.15",Workpackage,,
Department of Health,HSCIC,25/01/2016,Computer Maintenance,IT Services,PROBRAND LTD,OPI530593,"131,770.48",Computer Maintenance,,
Department of Health,HSCIC,31/01/2016,Workpackage,IT Development,SYSTEM DYNAMICS UK LTD,391,"131,325.60",Workpackage,,
Department of Health,HSCIC,30/09/2015,Legal / Professional Fees,Commercial  LSP NME,DLA PIPER UK LLP,54791462,"130,765.40",Legal / Professional Fees,,
Department of Health,HSCIC,27/05/2015,Computer Hardware,IT Services,PROBRAND LTD,OPI509715,"129,123.92",Computer Hardware,,
Department of Health,HSCIC,29/04/2015,Computer Maintenance,General Practice Extraction Service,CSC COMPUTER SCIENCES LTD,5201408597,"128,920.73",Computer Maintenance,,
Department of Health,HSCIC,13/03/2016,Workpackage,Operations & Technical Services,XML SOLUTIONS LTD,IC015,"127,891.75",Workpackage,,
Department of Health,HSCIC,22/12/2015,IT Additions,Capital Expenditure,PROBRAND LTD,OPI528643,"127,711.02",IT Additions,,
Department of Health,HSCIC,25/02/2016,Computer Maintenance,IT Services,PROBRAND LTD,OPI533706,"127,396.27",Computer Maintenance,,
Department of Health,HSCIC,12/02/2016,Health Surveys,Population Health,NATIONAL CENTRE FOR SOCIAL RESEARCH,52492,"126,000.00",Health Surveys,,
Department of Health,HSCIC,17/04/2015,Computer Software/License,Commercial Delivery,ATOS IT SERVICES UK LTD,5584183428,"125,682.52",Computer Software/License,,
Department of Health,HSCIC,17/11/2015,Data Lines,IT Services,BT PLC,399696,"124,656.00",Data Lines,,
Department of Health,HSCIC,13/04/2015,Legal / Professional Fees,HSCN,DELOITTE LLP,2410089209,"123,155.70",Legal / Professional Fees,,
Department of Health,HSCIC,13/01/2016,Contingent Labour,Various,CAPITA BUSINESS SERVICES LTD,LO10088126,"122,384.17",Contingent Labour,,
Department of Health,HSCIC,29/02/2016,Fixtures & Fittings Additions,Capital Expenditure,SECURITY SYSTEMS TECHNOLOGY LTD,30657,"122,057.61",Fixtures & Fittings Additions,,
Department of Health,HSCIC,31/03/2015,Legal / Professional Fees,Commercial  LSP NME,DLA PIPER UK LLP,54776962,"121,979.58",Legal / Professional Fees,,
Department of Health,HSCIC,28/05/2015,Legal / Professional Fees,Commercial  LSP NME,DLA PIPER UK LLP,54782351,"121,885.14",Legal / Professional Fees,,
Department of Health,HSCIC,03/03/2016,Workpackage,IT Development,SYSTEM DYNAMICS UK LTD,397,"117,923.90",Workpackage,,
Department of Health,HSCIC,31/03/2015,Workpackage,Operations & Technical Services,MOZAIC SERVICES LTD,ICTRESOURCINGSERVICESMOZ00415,"116,292.85",Workpackage,,
Department of Health,HSCIC,30/10/2015,IT Additions,Capital Expenditure,PROBRAND LTD,OPI523935,"114,859.14",IT Additions,,
Department of Health,HSCIC,23/07/2015,IT Additions,Capital Expenditure,CSA WAVERLEY LTD,IN661538,"114,153.45",IT Additions,,
Department of Health,HSCIC,17/03/2016,IT Additions,Capital Expenditure,MCSA GROUP LTD,SINV100263,"112,212.07",IT Additions,,
Department of Health,HSCIC,26/11/2015,Workpackage,Operations & Technical Services,XML SOLUTIONS LTD,IC011,"112,136.00",Workpackage,,
Department of Health,HSCIC,30/04/2015,IT Additions,Capital Expenditure,PROBRAND LTD,OPI507501,"111,828.14",IT Additions,,
Department of Health,HSCIC,25/11/2015,Contingent Labour,Various,CAPITA BUSINESS SERVICES LTD,LO10078877,"111,801.88",Contingent Labour,,
Department of Health,HSCIC,24/07/2015,Computer Software/License,IT Operations,SOFTCAT LTD,INV01192598,"111,586.40",Computer Software/License,,
Department of Health,HSCIC,30/09/2015,IT Additions,Capital Expenditure,PROBRAND LTD,OPI520993,"111,420.89",IT Additions,,
Department of Health,HSCIC,16/03/2016,Contingent Labour,Various,CAPITA BUSINESS SERVICES LTD,LO10101573,"111,346.29",Contingent Labour,,
Department of Health,HSCIC,02/12/2015,Contingent Labour,Various,CAPITA BUSINESS SERVICES LTD,LO10080615,"111,287.01",Contingent Labour,,
Department of Health,HSCIC,31/10/2015,Workpackage,IT Development,SYSTEM DYNAMICS UK LTD,373,"111,192.75",Workpackage,,
Department of Health,HSCIC,26/06/2015,Computer Hardware,IT Services,PROBRAND LTD,OPI512592,"110,450.35",Computer Hardware,,
Department of Health,HSCIC,10/06/2015,Computer Software/License,IT Services,SOFTCAT LTD,INV01164289,"109,260.20",Computer Software/License,,
Department of Health,HSCIC,29/02/2016,Computer Software/License,IT Services,INSIGHT DIRECT (UK) LTD,2789074,"107,928.34",Computer Software/License,,
Department of Health,HSCIC,29/01/2016,IT Additions,Capital Expenditure,PROBRAND LTD,OPI531286,"107,590.04",IT Additions,,
Department of Health,HSCIC,09/10/2015,Workpackage,Operations & Technical Services,XML SOLUTIONS LTD,IC010,"107,000.00",Workpackage,,
Department of Health,HSCIC,07/01/2016,Contract Other External,CHRIS Service Management,IDENTITY & PASSPORT SERVICE,IPSGR0000918,"105,636.33",Contract Other External,,
Department of Health,HSCIC,31/01/2015,Data Services,General Practice Extraction Service,IN PRACTICE SYSTEMS LTD,414607,"103,164.00",Data Services,,
Department of Health,HSCIC,11/02/2016,Workpackage,Operations & Technical Services,XML SOLUTIONS LTD,IC014,"102,225.12",Workpackage,,
Department of Health,HSCIC,17/03/2016,Health Surveys,Population Health,MARKET & OPINION RESEARCH INTERNATIONAL LTD,16000491,"102,054.96",Health Surveys,,
Department of Health,HSCIC,27/02/2015,Course Fees,Organisation development & training,CAPITA BUSINESS SERVICES LTD,A63677,"101,188.18",Course Fees,,
Department of Health,HSCIC,01/04/2015,External Managed Service,Digital Assessment Service,INFERMED LTD,6115,"101,071.00",External Managed Service,,
Department of Health,HSCIC,12/11/2015,External Consultancy Fees,Infrastructure,QINETIQ LTD,117043412,"100,000.00",External Consultancy Fees,,
Department of Health,HSCIC,30/05/2015,IT Additions,Capital Expenditure,PROBRAND LTD,OPI512991,"99,839.34",IT Additions,,
Department of Health,HSCIC,27/05/2015,Computer Maintenance,IT Services,PROBRAND LTD,OPI509707,"99,331.31",Computer Maintenance,,
Department of Health,HSCIC,30/04/2015,Workpackage,Operations & Technical Services,MOZAIC SERVICES LTD,ICTRESOURCINGSERVICESMOZ00515,"98,184.00",Workpackage,,
Department of Health,HSCIC,13/05/2015,Computer Software/License,IT Services,INSIGHT DIRECT (UK) LTD,2372424,"94,417.15",Computer Software/License,,
Department of Health,HSCIC,30/06/2015,Legal / Professional Fees,Commercial  LSP NME,DLA PIPER UK LLP,54784956,"94,212.44",Legal / Professional Fees,,
Department of Health,HSCIC,26/11/2015,Legal / Professional Fees,Commercial  LSP NME,DLA PIPER UK LLP,54796663,"93,957.99",Legal / Professional Fees,,
Department of Health,HSCIC,20/10/2015,IT Additions,Capital Expenditure,MCSA GROUP LTD,IN662048,"93,715.77",IT Additions,,
Department of Health,HSCIC,05/12/2015,Workpackage,Operations & Technical Services,XML SOLUTIONS LTD,IC012,"93,598.25",Workpackage,,
Department of Health,HSCIC,31/03/2015,IT Additions,Capital Expenditure,CSA WAVERLEY LTD,IN660891,"93,056.20",IT Additions,,
Department of Health,HSCIC,30/11/2015,Computer Hardware,IT Services,PROBRAND LTD,OPI526460,"92,573.56",Computer Hardware,,
Department of Health,HSCIC,01/07/2015,Workpackage,Operations & Technical Services,MOZAIC SERVICES LTD,ICTRESOURCINGSERVICESMOZ00715,"92,410.95",Workpackage,,
Department of Health,HSCIC,25/03/2015,Rent,Estates & Facilities,REGUS (UK) LTD,38319954,"92,380.36",Rent,,
Department of Health,HSCIC,19/11/2015,Contingent Labour,Various,CAPITA BUSINESS SERVICES LTD,LO10077954,"91,282.61",Contingent Labour,,
Department of Health,HSCIC,31/05/2015,Workpackage,Operations & Technical Services,MOZAIC SERVICES LTD,SERVICESMOZ00615,"91,261.65",Workpackage,,
Department of Health,HSCIC,01/03/2016,Rates,Estates & Facilities,LEEDS CITY COUNCIL,90097745101031600000,"90,951.00",Rates,,
Department of Health,HSCIC,30/11/2015,Computer Software/License,IT Services,BASHO TECHNOLOGIES LTD,5,"90,885.00",Computer Software/License,,
Department of Health,HSCIC,31/07/2015,Workpackage,Operations & Technical Services,MOZAIC SERVICES LTD,ICTRESOURCINGSERVICESMOZ00815,"90,705.80",Workpackage,,
Department of Health,HSCIC,10/08/2015,Rent & Rates,Estates & Facilities,HM REVENUE & CUSTOMS,18000016132015,"89,873.52",Rent & Rates,,
Department of Health,HSCIC,12/01/2016,IT Additions,Capital Expenditure,COMPUTACENTER (UK) LTD,3880727609,"88,304.17",IT Additions,,
Department of Health,HSCIC,31/03/2015,Computer Software/License,SSD BSO,SOFTWARE AG (UK) LTD,1109006148,"87,919.00",Computer Software/License,,
Department of Health,HSCIC,26/06/2015,Computer Maintenance,IT Services,PROBRAND LTD,OPI512591,"87,765.20",Computer Maintenance,,
Department of Health,HSCIC,21/07/2015,Computer Maintenance,IT Services,PROBRAND LTD,OPI514899,"87,669.96",Computer Maintenance,,
Department of Health,HSCIC,24/09/2015,Computer Maintenance,IT Services,PROBRAND LTD,OPI520333,"87,541.07",Computer Maintenance,,
Department of Health,HSCIC,28/08/2015,IT Additions,Capital Expenditure,PROBRAND LTD,OPI518196,"87,518.08",IT Additions,,
Department of Health,HSCIC,29/05/2015,IT Additions,Capital Expenditure,PROBRAND LTD,OPI510125,"87,315.79",IT Additions,,
Department of Health,HSCIC,13/10/2015,Data Services,General Practice Extraction Service,EMIS (EGTON MEDICAL INFORMATION SYSTEMS LTD),IN9391811,"87,286.50",Data Services,,
Department of Health,HSCIC,28/05/2015,Computer Software/License,IT Services,SOFTCAT LTD,INV01156471,"87,232.82",Computer Software/License,,
Department of Health,HSCIC,20/03/2015,Legal / Professional Fees,Population Health,OFFICE FOR NATIONAL STATISTICS,1029988,"87,181.50",Legal / Professional Fees,,
Department of Health,HSCIC,16/03/2016,Workpackage,"Architecture, Standards & Innovation",PROFESSIONAL RECORD STANDARDS BODY,22,"87,139.00",Workpackage,,
Department of Health,HSCIC,28/04/2015,Computer Maintenance,IT Services,PROBRAND LTD,OPI507088,"87,041.37",Computer Maintenance,,
Department of Health,HSCIC,30/03/2015,Computer Software/License,IT Services,INSIGHT DIRECT (UK) LTD,2308933,"86,125.29",Computer Software/License,,
Department of Health,HSCIC,25/02/2016,External Consultancy Fees,Provider Support & Integration,LONDON BOROUGH OF NEWHAM,6M0004808323,"86,097.00",External Consultancy Fees,,
Department of Health,HSCIC,23/07/2015,External Consultancy Fees,Child Protection Information Sharing (CPIS),NORTH TYNESIDE COUNCIL,M0006767240,"86,097.00",External Consultancy Fees,,
Department of Health,HSCIC,19/02/2015,External Consultancy Fees,Child Protection Information Sharing (CPIS),STOCKPORT METROPOLITAN BOROUGH COUNCIL,90458781,"86,097.00",External Consultancy Fees,,
Department of Health,HSCIC,20/03/2015,External Consultancy Fees,Child Protection Information Sharing (CPIS),WAKEFIELD METROPOLITAN DISTRICT COUNCIL,91309142393,"86,097.00",External Consultancy Fees,,
Department of Health,HSCIC,26/08/2015,Computer Software/License,IT Services,SOUTHAMPTON CITY COUNCIL,BG6527877,"86,000.00",Computer Software/License,,
Department of Health,HSCIC,26/03/2015,Computer Maintenance,IT Services,PROBRAND LTD,OPI504468,"85,840.83",Computer Maintenance,,
Department of Health,HSCIC,30/03/2015,Workpackage,Health & Justice Information Service (HJIS),INFORMED SOLUTIONS LTD,8972,"85,576.00",Workpackage,,
Department of Health,HSCIC,27/01/2016,IT Additions,Capital Expenditure,SOFTCAT LTD,INV01306083,"84,930.00",IT Additions,,
Department of Health,HSCIC,11/02/2016,Workpackage,"Architecture, Standards & Innovation",PROFESSIONAL RECORD STANDARDS BODY,18,"84,430.00",Workpackage,,
Department of Health,HSCIC,10/03/2016,Workpackage,"Architecture, Standards & Innovation",PROFESSIONAL RECORD STANDARDS BODY,20,"84,430.00",Workpackage,,
Department of Health,HSCIC,25/01/2016,Computer Maintenance,IT Services,PROBRAND LTD,OPI530595,"84,403.72",Computer Maintenance,,
Department of Health,HSCIC,01/03/2016,Rates,Estates & Facilities,LEEDS CITY COUNCIL,90090780801031600000,"83,496.00",Rates,,
Department of Health,HSCIC,15/02/2016,Computer Maintenance,IT Services,PROBRAND LTD,OPI532573,"83,072.79",Computer Maintenance,,
Department of Health,HSCIC,06/07/2015,Legal / Professional Fees,HSCN,DELOITTE MCS LTD,1111203259,"82,979.60",Legal / Professional Fees,,
Department of Health,HSCIC,02/03/2015,Rates,Estates & Facilities,LEEDS CITY COUNCIL,90090780802031500000,"82,824.00",Rates,,
Department of Health,HSCIC,30/11/2015,Computer Software/License,IT Services,INSIGHT DIRECT (UK) LTD,2667631,"82,775.00",Computer Software/License,,
Department of Health,HSCIC,30/12/2015,Contingent Labour,Various,CAPITA BUSINESS SERVICES LTD,LO10085938,"82,518.05",Contingent Labour,,
Department of Health,HSCIC,07/01/2016,Workpackage,Operations & Technical Services,XML SOLUTIONS LTD,IC013,"82,242.88",Workpackage,,
Department of Health,HSCIC,31/01/2016,Legal / Professional Fees,Commercial  LSP NME,DLA PIPER UK LLP,54802326,"80,404.90",Legal / Professional Fees,,
Department of Health,HSCIC,29/02/2016,IT Additions,Capital Expenditure,PROBRAND LTD,OPI534106,"80,268.07",IT Additions,,
Department of Health,HSCIC,27/08/2015,Legal / Professional Fees,Commercial  LSP NME,DLA PIPER UK LLP,54789099,"79,540.54",Legal / Professional Fees,,
Department of Health,HSCIC,30/10/2015,Workpackage,Operations & Technical Services,MOZAIC SERVICES LTD,15,"79,230.00",Workpackage,,
Department of Health,HSCIC,31/01/2016,Workpackage,IT Development,SYSTEM DYNAMICS UK LTD,390,"78,383.30",Workpackage,,
Department of Health,HSCIC,24/09/2015,Computer Hardware,IT Services,PROBRAND LTD,OPI520331,"78,101.36",Computer Hardware,,
Department of Health,HSCIC,01/12/2015,Computer Maintenance,General Practice Extraction Service,CSC COMPUTER SCIENCES LTD,5201433321,"77,637.16",Computer Maintenance,,
Department of Health,HSCIC,30/11/2015,Computer Maintenance,IT Services,PROBRAND LTD,OPI526446,"77,415.53",Computer Maintenance,,
Department of Health,HSCIC,21/08/2015,Computer Maintenance,IT Services,PROBRAND LTD,OPI517555,"77,088.05",Computer Maintenance,,
Department of Health,HSCIC,20/10/2015,Computer Maintenance,IT Services,PROBRAND LTD,OPI522760,"77,073.11",Computer Maintenance,,
Department of Health,HSCIC,18/12/2015,Computer Maintenance,IT Services,PROBRAND LTD,OPI528292,"77,050.62",Computer Maintenance,,
Department of Health,HSCIC,11/03/2016,Rates,Estates & Facilities,EXETER CITY COUNCIL,70013799811031600000,"76,538.00",Rates,,
Department of Health,HSCIC,10/03/2015,Rates,Estates & Facilities,EXETER CITY COUNCIL,70013799810031500000,"75,922.00",Rates,,
Department of Health,HSCIC,30/11/2015,Workpackage,IT Development,SYSTEM DYNAMICS UK LTD,381,"74,180.50",Workpackage,,
Department of Health,HSCIC,27/11/2015,External Managed Service,IT Services,RICOH UK LTD,56840102,"74,173.88",External Managed Service,,
Department of Health,HSCIC,06/01/2016,Computer Software/License,IT Services,SOFTCAT LTD,INV01291752,"74,058.00",Computer Software/License,,
Department of Health,HSCIC,31/01/2016,Workpackage,Operations & Technical Services,MOZAIC SERVICES LTD,60,"73,080.00",Workpackage,,
Department of Health,HSCIC,09/03/2016,Computer Hardware,IT Services,SOFTCAT LTD,INV01333070,"72,922.00",Computer Hardware,,
Department of Health,HSCIC,15/03/2016,IT Additions,Capital Expenditure,MCSA GROUP LTD,SINV100231,"72,895.08",IT Additions,,
Department of Health,HSCIC,26/02/2015,Legal / Professional Fees,Commercial  LSP NME,DLA PIPER UK LLP,54774379,"72,183.20",Legal / Professional Fees,,
Department of Health,HSCIC,06/01/2016,Computer Software/License,IT Services,SOFTCAT LTD,INV01291786,"72,068.75",Computer Software/License,,
Department of Health,HSCIC,17/03/2016,Data Extracts,Primary Care Domain,HEALTH INTELLIGENCE LTD,1244,"72,025.00",Data Extracts,,
Department of Health,HSCIC,12/03/2013,Secondment,BT LSP Programme,GUYS&ST THOMAS NHS FOUNDATION TRUST,3107941,"71,780.00",Secondment,,
Department of Health,HSCIC,16/02/2016,Data Services,General Practice Extraction Service,IN PRACTICE SYSTEMS LTD,424885,"71,700.02",Data Services,,
Department of Health,HSCIC,30/09/2015,Workpackage,Operations & Technical Services,MOZAIC SERVICES LTD,8,"71,700.00",Workpackage,,
Department of Health,HSCIC,04/01/2016,Workpackage,Operations & Technical Services,MOZAIC SERVICES LTD,43,"71,490.00",Workpackage,,
Department of Health,HSCIC,23/12/2015,IT Additions,Capital Expenditure,COMPUTACENTER (UK) LTD,3880716178,"70,783.05",IT Additions,,
Department of Health,HSCIC,19/11/2015,Contingent Labour,Various,CAPITA BUSINESS SERVICES LTD,LO10077963,"70,768.68",Contingent Labour,,
Department of Health,HSCIC,27/11/2015,External Managed Service,IT Services,RICOH UK LTD,56840103,"70,709.76",External Managed Service,,
Department of Health,HSCIC,30/10/2015,Conferences & Seminars,Various,CALDER CONFERENCES LTD,BB2789,"69,731.24",Conferences & Seminars,,
Department of Health,HSCIC,25/03/2015,Computer Software/License,IT Services,SOFTCAT LTD,INV01120453,"69,642.57",Computer Software/License,,
Department of Health,HSCIC,27/05/2015,IT Additions,Capital Expenditure,PROBRAND LTD,OPI509716,"69,610.00",IT Additions,,
Department of Health,HSCIC,06/10/2015,Course Fees,Organisation development & training,INTERNATIONAL INFORMATION SYSTEMS SECURITY CERTIFICATION CONSORTIUM LTD,INV7403024TBWB5,"69,597.00",Course Fees,,
Department of Health,HSCIC,13/11/2015,Contingent Labour,Various,CAPITA BUSINESS SERVICES LTD,LO10076708,"69,533.36",Contingent Labour,,
Department of Health,HSCIC,30/06/2015,Computer Hardware,IT Services,PROBRAND LTD,OPI512992,"69,248.41",Computer Hardware,,
Department of Health,HSCIC,30/11/2015,IT Additions,Capital Expenditure,PROBRAND LTD,OPI526663,"68,896.56",IT Additions,,
Department of Health,HSCIC,31/12/2015,Workpackage,IT Development,SYSTEM DYNAMICS UK LTD,382,"68,763.10",Workpackage,,
Department of Health,HSCIC,28/09/2015,Computer Software/License,IT Services,BYTES SOFTWARE SERVICES LTD,425842,"68,658.56",Computer Software/License,,
Department of Health,HSCIC,01/09/2015,Workpackage,Operations & Technical Services,MOZAIC SERVICES LTD,ICTRESOURCINGSERVICESMOZ00915,"68,277.90",Workpackage,,
Department of Health,HSCIC,26/01/2016,IT Additions,Capital Expenditure,MCSA GROUP LTD,IN662548,"66,244.80",IT Additions,,
Department of Health,HSCIC,18/12/2015,External Consultancy Fees,Infrastructure,CONTEXT INFORMATION SECURITY LTD,5878,"66,000.00",External Consultancy Fees,,
Department of Health,HSCIC,29/07/2015,Conferences & Seminars,Various,CALDER CONFERENCES LTD,B2498,"65,955.95",Conferences & Seminars,,
Department of Health,HSCIC,21/01/2016,Data Lines,IT Services,BT PLC,405021,"65,585.00",Data Lines,,
Department of Health,HSCIC,01/06/2015,Rent,Estates & Facilities,PETIT PAPILLON MANAGEMENT LTD,10593,"65,385.04",Rent,,
Department of Health,HSCIC,09/12/2015,Rent,Estates & Facilities,PETIT PAPILLON MANAGEMENT LTD,11359,"65,385.04",Rent,,
Department of Health,HSCIC,04/03/2016,Rent,Estates & Facilities,PETIT PAPILLON MANAGEMENT LTD,11636,"65,385.04",Rent,,
Department of Health,HSCIC,13/05/2015,Computer Maintenance,Interoperability & Data Dictionary Service,OCEAN INFORMATICS,INV196,"65,240.00",Computer Maintenance,,
Department of Health,HSCIC,31/12/2015,IT Additions,Capital Expenditure,SOFTCAT LTD,INV01289617,"65,087.88",IT Additions,,
Department of Health,HSCIC,08/05/2015,Data Services,General Practice Extraction Service,ATOS IT SERVICES UK LTD,5584185213,"65,083.33",Data Services,,
Department of Health,HSCIC,24/08/2015,Data Services,General Practice Extraction Service,ATOS IT SERVICES UK LTD,5584193712,"65,083.33",Data Services,,
Department of Health,HSCIC,24/08/2015,Data Services,General Practice Extraction Service,ATOS IT SERVICES UK LTD,5584193713,"65,083.33",Data Services,,
Department of Health,HSCIC,24/08/2015,Data Services,General Practice Extraction Service,ATOS IT SERVICES UK LTD,5584193714,"65,083.33",Data Services,,
Department of Health,HSCIC,24/08/2015,Data Services,General Practice Extraction Service,ATOS IT SERVICES UK LTD,5584193715,"65,083.33",Data Services,,
Department of Health,HSCIC,06/11/2015,Data Services,General Practice Extraction Service,ATOS IT SERVICES UK LTD,5584199686,"65,083.33",Data Services,,
Department of Health,HSCIC,06/11/2015,Data Services,General Practice Extraction Service,ATOS IT SERVICES UK LTD,5584199687,"65,083.33",Data Services,,
Department of Health,HSCIC,06/11/2015,Data Services,General Practice Extraction Service,ATOS IT SERVICES UK LTD,5584199688,"65,083.33",Data Services,,
Department of Health,HSCIC,16/12/2015,Data Services,General Practice Extraction Service,ATOS IT SERVICES UK LTD,5584203730,"65,083.33",Data Services,,
Department of Health,HSCIC,07/01/2016,Data Services,General Practice Extraction Service,ATOS IT SERVICES UK LTD,5584204252,"65,083.33",Data Services,,
Department of Health,HSCIC,16/02/2016,Data Services,General Practice Extraction Service,ATOS IT SERVICES UK LTD,5584206091,"65,083.33",Data Services,,
Department of Health,HSCIC,18/05/2015,Health Surveys,Population Health,NATIONAL CENTRE FOR SOCIAL RESEARCH,51963,"65,000.00",Health Surveys,,
Department of Health,HSCIC,11/02/2016,Data Lines,IT Services,BT PLC,406380,"64,878.00",Data Lines,,
Department of Health,HSCIC,30/10/2015,IT Additions,Capital Expenditure,SOFTCAT LTD,INV01252799,"64,833.56",IT Additions,,
Department of Health,HSCIC,11/12/2015,IT Additions,Capital Expenditure,CSA WAVERLEY LTD,IN662364,"64,200.00",IT Additions,,
Department of Health,HSCIC,28/04/2015,Legal / Professional Fees,Commercial  LSP NME,DLA PIPER UK LLP,54779577,"63,406.87",Legal / Professional Fees,,
Department of Health,HSCIC,30/03/2015,Health Surveys,Population Health,MARKET & OPINION RESEARCH INTERNATIONAL LTD,15000627,"63,204.88",Health Surveys,,
Department of Health,HSCIC,31/03/2015,Fixtures & Fittings Additions,Capital Expenditure,FLEXIFORM BUSINESS FURNITURE LTD,M54370,"63,053.00",Fixtures & Fittings Additions,,
Department of Health,HSCIC,20/10/2015,Computer Hardware,IT Services,PROBRAND LTD,OPI522762,"62,851.57",Computer Hardware,,
Department of Health,HSCIC,09/03/2015,Rent,Estates & Facilities,PETIT PAPILLON MANAGEMENT LTD,10362,"61,934.45",Rent,,
Department of Health,HSCIC,01/06/2015,Rent,Estates & Facilities,PETIT PAPILLON MANAGEMENT LTD,10591,"61,934.45",Rent,,
Department of Health,HSCIC,09/12/2015,Rent,Estates & Facilities,PETIT PAPILLON MANAGEMENT LTD,11357,"61,934.45",Rent,,
Department of Health,HSCIC,04/03/2016,Rent,Estates & Facilities,PETIT PAPILLON MANAGEMENT LTD,11634,"61,934.45",Rent,,
Department of Health,HSCIC,16/09/2015,Rent,Estates & Facilities,PETIT PAPILLON MANAGEMENT LTD,OMI0302,"61,859.07",Rent,,
Department of Health,HSCIC,03/03/2016,Workpackage,Operations & Technical Services,MOZAIC SERVICES LTD,69,"61,800.00",Workpackage,,
Department of Health,HSCIC,16/11/2015,Health Surveys,Population Health,NATIONAL CENTRE FOR SOCIAL RESEARCH,52344,"61,600.00",Health Surveys,,
Department of Health,HSCIC,31/03/2015,Computer Software/License,IT Services,INSIGHT DIRECT (UK) LTD,2310977,"60,900.00",Computer Software/License,,
Department of Health,HSCIC,16/06/2015,Computer Software/License,IT Services,INSIGHT DIRECT (UK) LTD,2422271,"60,900.00",Computer Software/License,,
Department of Health,HSCIC,22/12/2015,Legal / Professional Fees,Commercial  LSP NME,DLA PIPER UK LLP,54799040,"60,490.97",Legal / Professional Fees,,
Department of Health,HSCIC,24/09/2015,Legal / Professional Fees,Commercial  LSP NME,MILBANK TWEED HADLEY & MCCLOY LLP,109918,"60,301.03",Legal / Professional Fees,,
Department of Health,HSCIC,26/06/2015,IT Additions,Capital Expenditure,PROBRAND LTD,OPI512593,"60,130.00",IT Additions,,
Department of Health,HSCIC,27/05/2015,IT Additions,Capital Expenditure,PROBRAND LTD,OPI509708,"59,094.00",IT Additions,,
Department of Health,HSCIC,04/03/2016,Rates,Estates & Facilities,REDDITCH BOROUGH COUNCIL,300008600404031000000,"58,646.00",Rates,,
Department of Health,HSCIC,28/09/2015,Computer Software/License,IT Services,COMPUTACENTER (UK) LTD,3880634810,"58,281.98",Computer Software/License,,
Department of Health,HSCIC,29/01/2015,Legal / Professional Fees,Commercial  LSP NME,DLA PIPER UK LLP,54771830,"58,216.10",Legal / Professional Fees,,
Department of Health,HSCIC,19/05/2015,Data Services,General Practice Extraction Service,MICROTEST LTD,85809,"57,792.96",Data Services,,
Department of Health,HSCIC,29/05/2015,Data Services,General Practice Extraction Service,MICROTEST LTD,85945,"57,792.96",Data Services,,
Department of Health,HSCIC,07/04/2015,Legal / Professional Fees,Commercial  LSP NME,DLA PIPER UK LLP,MRAVCAG365302,"57,246.40",Legal / Professional Fees,,
Department of Health,HSCIC,26/02/2016,Secondment,Provider Support & Integration,GUYS&ST THOMAS NHS FOUNDATION TRUST,3186654,"55,565.39",Secondment,,
Department of Health,HSCIC,31/12/2015,Computer Maintenance,IT Services,ANS GROUP PLC,INV038733,"55,137.72",Computer Maintenance,,
Department of Health,HSCIC,08/09/2015,IT Additions,Capital Expenditure,SOFTCAT LTD,INV01219313,"54,656.80",IT Additions,,
Department of Health,HSCIC,07/08/2015,Computer Maintenance,IT Services,COMPUTACENTER (UK) LTD,3880591335,"54,525.96",Computer Maintenance,,
Department of Health,HSCIC,22/09/2015,Health Surveys,Population Health,NATIONAL CENTRE FOR SOCIAL RESEARCH,52174,"53,600.00",Health Surveys,,
Department of Health,HSCIC,21/08/2015,Workpackage,Operations & Technical Services,XML SOLUTIONS LTD,IC008,"53,205.75",Workpackage,,
Department of Health,HSCIC,25/06/2015,Secondment,Commercial Delivery,ATOS IT SERVICES UK LTD,5584189149,"53,162.20",Secondment,,
Department of Health,HSCIC,21/12/2015,Health Surveys,Population Health,MARKET & OPINION RESEARCH INTERNATIONAL LTD,15002256,"52,788.00",Health Surveys,,
Department of Health,HSCIC,04/01/2016,IT Additions,Capital Expenditure,XMA LTD,AA55262,"52,676.94",IT Additions,,
Department of Health,HSCIC,30/12/2015,Computer Software/License,IT Services,SPECIALIST COMPUTER CENTRES PLC,OPM103907,"52,503.32",Computer Software/License,,
Department of Health,HSCIC,17/07/2015,Audit Fees: Statutory,Finance,NATIONAL AUDIT OFFICE,5286,"52,500.00",Audit Fees: Statutory,,
Department of Health,HSCIC,27/11/2015,IT Additions,Capital Expenditure,SOFTCAT LTD,INV01270297,"52,186.75",IT Additions,,
Department of Health,HSCIC,30/11/2015,Workpackage,Operations & Technical Services,MOZAIC SERVICES LTD,31,"52,080.00",Workpackage,,
Department of Health,HSCIC,26/05/2015,Computer Software/License,IT Services,INSIGHT DIRECT (UK) LTD,2389399,"52,007.90",Computer Software/License,,
Department of Health,HSCIC,11/03/2016,Rates,Estates & Facilities,EXETER CITY COUNCIL,70013719211031600000,"51,688.00",Rates,,
Department of Health,HSCIC,22/12/2015,Computer Maintenance,IT Services,PROBRAND LTD,OPI528642,"51,683.84",Computer Maintenance,,
Department of Health,HSCIC,11/05/2015,Computer Software/License,IT Services,SOFTCAT LTD,INV01146149,"51,670.00",Computer Software/License,,
Department of Health,HSCIC,06/11/2015,Legal / Professional Fees,Southern Review Commercial ,ERNST & YOUNG LLP,GB10100094734,"51,662.23",Legal / Professional Fees,,
Department of Health,HSCIC,11/01/2016,IT Additions,Capital Expenditure,XMA LTD,AB16163,"51,611.14",IT Additions,,
Department of Health,HSCIC,29/01/2016,Computer Maintenance,IT Services,PROBRAND LTD,OPI531287,"51,554.13",Computer Maintenance,,
Department of Health,HSCIC,09/12/2015,Health Surveys,Population Health,NATIONAL CENTRE FOR SOCIAL RESEARCH,52394,"51,350.00",Health Surveys,,
Department of Health,HSCIC,21/03/2016,Health Surveys,Population Health,NATIONAL CENTRE FOR SOCIAL RESEARCH,52586,"51,350.00",Health Surveys,,
Department of Health,HSCIC,10/03/2015,Rates,Estates & Facilities,EXETER CITY COUNCIL,70013719210031500000,"51,272.00",Rates,,
Department of Health,HSCIC,30/04/2015,Computer Hardware,IT Services,PROBRAND LTD,OPI507499,"50,905.68",Computer Hardware,,
Department of Health,HSCIC,31/03/2015,Computer Software Additions,Capital Expenditure,INFORMED SOLUTIONS LTD,8962,"50,700.00",Computer Software Additions,,
Department of Health,HSCIC,26/03/2015,Computer Software Additions,Capital Expenditure,INFORMED SOLUTIONS LTD,8963,"50,700.00",Computer Software Additions,,
Department of Health,HSCIC,30/03/2015,Workpackage,Health & Justice Information Service (HJIS),INFORMED SOLUTIONS LTD,8952,"50,502.00",Workpackage,,
Department of Health,HSCIC,30/09/2015,Legal / Professional Fees,Clinical audit,DIABETES UK,32787,"50,185.20",Legal / Professional Fees,,
Department of Health,HSCIC,24/12/2015,Legal / Professional Fees,Clinical audit,DIABETES UK,33127,"50,185.20",Legal / Professional Fees,,
Department of Health,HSCIC,27/07/2015,Legal / Professional Fees,HSCN,INFORMATION SERVICES GROUP LTD,9864,"50,000.00",Legal / Professional Fees,,
Department of Health,HSCIC,27/03/2015,Health Surveys,Population Health,NATIONAL CENTRE FOR SOCIAL RESEARCH,51874,"50,000.00",Health Surveys,,
Department of Health,HSCIC,23/07/2015,Health Surveys,Population Health,NATIONAL CENTRE FOR SOCIAL RESEARCH,52051,"50,000.00",Health Surveys,,
Department of Health,HSCIC,24/08/2015,Health Surveys,Population Health,NATIONAL CENTRE FOR SOCIAL RESEARCH,52126,"50,000.00",Health Surveys,,
Department of Health,HSCIC,29/09/2015,IT Additions,Capital Expenditure,COMPUTACENTER (UK) LTD,3880636211,"49,474.92",IT Additions,,
Department of Health,HSCIC,29/07/2015,Legal / Professional Fees,Commercial  LSP NME,DLA PIPER UK LLP,54786989,"49,384.88",Legal / Professional Fees,,
Department of Health,HSCIC,26/02/2016,Data Services,General Practice Extraction Service,EMIS (EGTON MEDICAL INFORMATION SYSTEMS LTD),EMSINV002627,"49,280.67",Data Services,,
Department of Health,HSCIC,30/06/2015,Course Fees,Organisation development & training,CAPITA BUSINESS SERVICES LTD,X74811,"49,146.29",Course Fees,,
Department of Health,HSCIC,07/08/2015,Legal / Professional Fees,Southern Review Commercial ,ERNST & YOUNG LLP,GB10100090171,"48,794.46",Legal / Professional Fees,,
Department of Health,HSCIC,02/09/2015,Workpackage,Operations & Technical Services,XML SOLUTIONS LTD,IC009,"48,711.75",Workpackage,,
Department of Health,HSCIC,15/04/2015,Legal / Professional Fees,Clinical audit,DIABETES UK,32158,"48,701.20",Legal / Professional Fees,,
Department of Health,HSCIC,06/07/2015,Legal / Professional Fees,Clinical audit,DIABETES UK,32459,"48,701.17",Legal / Professional Fees,,
Department of Health,HSCIC,09/11/2015,Contingent Labour,Central services,EXPERIS LTD,73164631,"48,592.00",Contingent Labour,,
Department of Health,HSCIC,30/11/2015,Conferences & Seminars,Various,CALDER CONFERENCES LTD,BB2916,"48,355.07",Conferences & Seminars,,
Department of Health,HSCIC,31/03/2015,IT Additions,Capital Expenditure,PROBRAND LTD,OPI505065,"48,062.26",IT Additions,,
Department of Health,HSCIC,06/01/2016,Contingent Labour,Various,CAPITA BUSINESS SERVICES LTD,LO10087064,"48,044.67",Contingent Labour,,
Department of Health,HSCIC,31/05/2015,Workpackage,HES Transition Project,BJSS LTD,13576,"47,975.00",Workpackage,,
Department of Health,HSCIC,07/08/2015,Phone Rental and Calls,Estates & Facilities,BT GLOBAL SERVICES,790154208,"47,900.30",Phone Rental and Calls,,
Department of Health,HSCIC,16/02/2016,Audit Fees: Statutory,Finance,NATIONAL AUDIT OFFICE,5463,"47,500.00",Audit Fees: Statutory,,
Department of Health,HSCIC,31/10/2015,Workpackage,IT Development,SYSTEM DYNAMICS UK LTD,372,"47,483.00",Workpackage,,
Department of Health,HSCIC,28/04/2015,Audit Fees: Internal,Corporate Assurance,DEPARTMENT OF HEALTH,212787,"46,819.90",Audit Fees: Internal,,
Department of Health,HSCIC,07/08/2015,Legal / Professional Fees,Southern Review Commercial ,ERNST & YOUNG LLP,GB10100090170,"46,645.40",Legal / Professional Fees,,
Department of Health,HSCIC,31/12/2015,Course Fees,Organisation development & training,CAPITA BUSINESS SERVICES LTD,X90836,"46,590.91",Course Fees,,
Department of Health,HSCIC,06/03/2016,Course Fees,Organisation development & training,CAPITA BUSINESS SERVICES LTD,X97882,"46,590.90",Course Fees,,
Department of Health,HSCIC,23/02/2016,Computer Software/License,IT Services,BASHO TECHNOLOGIES LTD,6,"46,290.00",Computer Software/License,,
Department of Health,HSCIC,04/09/2015,Rent,Estates & Facilities,PETIT PAPILLON MANAGEMENT LTD,10917,"45,549.75",Rent,,
Department of Health,HSCIC,22/09/2015,Health Surveys,Population Health,NATIONAL CENTRE FOR SOCIAL RESEARCH,52177,"45,500.00",Health Surveys,,
Department of Health,HSCIC,25/01/2016,Health Surveys,Population Health,NATIONAL CENTRE FOR SOCIAL RESEARCH,52468,"45,500.00",Health Surveys,,
Department of Health,HSCIC,06/01/2016,Legal / Professional Fees,Southern Review Commercial ,ERNST & YOUNG LLP,GB10100098060,"45,480.20",Legal / Professional Fees,,
Department of Health,HSCIC,28/05/2015,Course Fees,Organisation development & training,CAPITA BUSINESS SERVICES LTD,K71564,"45,365.83",Course Fees,,
Department of Health,HSCIC,26/11/2015,External Managed Service,IT Services,RICOH UK LTD,56838812,"45,291.12",External Managed Service,,
Department of Health,HSCIC,29/04/2015,Other Agency Staff,Various,BROOK STREET (UK) LTD,30142640,"44,472.67",Other Agency Staff,,
Department of Health,HSCIC,31/03/2015,Course Fees,Commercial Delivery,CHARTERED INSTITUTE OF PURCHASING & SUPPLY,236660,"44,278.00",Course Fees,,
Department of Health,HSCIC,24/03/2016,Computer Software/License,Technical Architecture,USERZOOM LTD,20161541,"44,250.00",Computer Software/License,,
Department of Health,HSCIC,22/05/2015,Computer Maintenance,General Practice Extraction Service,CSC COMPUTER SCIENCES LTD,5201409959,"44,086.47",Computer Maintenance,,
Department of Health,HSCIC,10/07/2015,Data Services,General Practice Extraction Service,UNIVERSITY OF NOTTINGHAM,7709058,"43,585.00",Data Services,,
Department of Health,HSCIC,30/11/2015,Data Services,General Practice Extraction Service,EMIS (EGTON MEDICAL INFORMATION SYSTEMS LTD),SINV000251,"43,401.78",Data Services,,
Department of Health,HSCIC,01/05/2015,External Managed Service,Digital Assessment Service,INFERMED LTD,7215,"43,392.00",External Managed Service,,
Department of Health,HSCIC,01/06/2015,External Managed Service,Digital Assessment Service,INFERMED LTD,8215,"43,392.00",External Managed Service,,
Department of Health,HSCIC,01/07/2015,External Managed Service,Digital Assessment Service,INFERMED LTD,10015,"43,392.00",External Managed Service,,
Department of Health,HSCIC,15/09/2015,External Managed Service,Digital Assessment Service,INFERMED LTD,4180000042,"43,392.00",External Managed Service,,
Department of Health,HSCIC,15/09/2015,External Managed Service,Digital Assessment Service,INFERMED LTD,4180000045,"43,392.00",External Managed Service,,
Department of Health,HSCIC,30/10/2015,External Managed Service,Digital Assessment Service,INFERMED LTD,4180000123,"43,392.00",External Managed Service,,
Department of Health,HSCIC,31/12/2015,External Managed Service,Digital Assessment Service,INFERMED LTD,4180000251,"43,392.00",Computer Maintenance,,
Department of Health,HSCIC,31/12/2015,External Managed Service,Digital Assessment Service,INFERMED LTD,4180000252,"43,392.00",Computer Maintenance,,
Department of Health,HSCIC,31/01/2016,External Managed Service,Digital Assessment Service,INFERMED LTD,4180000284,"43,392.00",Computer Maintenance,,
Department of Health,HSCIC,04/09/2015,Rent,Estates & Facilities,PETIT PAPILLON MANAGEMENT LTD,10915,"43,289.00",Rent,,
Department of Health,HSCIC,27/02/2015,External Consultancy Fees,Child Protection Information Sharing (CPIS),CALDERDALE METROPOLITAN BOROUGH COUNCIL,IN14287217,"43,048.50",External Consultancy Fees,,
Department of Health,HSCIC,27/05/2015,Computer Software/License,ODS Team,TOMORROWS GUIDES LTD,36095,"43,000.00",Computer Software/License,,
Department of Health,HSCIC,11/03/2016,Workpackage,"Architecture, Standards & Innovation",PROFESSIONAL RECORD STANDARDS BODY,21,"42,215.00",Workpackage,,
Department of Health,HSCIC,10/11/2015,Rent,Estates & Facilities,HM REVENUE & CUSTOMS,18000027322015,"41,979.15",Rent,,
Department of Health,HSCIC,01/04/2015,External Consultancy Fees,Commercial  LSP NME,ERNST & YOUNG LLP,GB10100083143,"41,886.86",External Consultancy Fees,,
Department of Health,HSCIC,31/01/2016,Fixtures & Fittings Additions,Capital Expenditure,SAPPHIRE CONTRACTORS LTD,6671,"41,581.51",Fixtures & Fittings Additions,,
Department of Health,HSCIC,30/10/2015,Legal / Professional Fees,Southern Review Commercial ,ERNST & YOUNG LLP,GB10100094303,"41,534.37",Legal / Professional Fees,,
Department of Health,HSCIC,17/09/2015,External Managed Service,IT Services,RICOH UK LTD,56785176,"41,506.92",External Managed Service,,
Department of Health,HSCIC,17/09/2015,External Managed Service,IT Services,RICOH UK LTD,56785179,"41,506.92",External Managed Service,,
Department of Health,HSCIC,21/10/2015,Computer Software/License,IT Services,AMADEUS SOFTWARE LTD,6271,"41,400.00",Computer Software/License,,
Department of Health,HSCIC,24/02/2016,External Consultancy Fees,Estates & Facilities,2T SECURITY LTD,93,"41,361.53",External Consultancy Fees,,
Department of Health,HSCIC,30/10/2015,Legal / Professional Fees,Southern Review Commercial ,ERNST & YOUNG LLP,GB10100094310,"41,343.77",Legal / Professional Fees,,
Department of Health,HSCIC,12/01/2016,IT Additions,Capital Expenditure,MCSA GROUP LTD,IN662504,"40,960.00",IT Additions,,
Department of Health,HSCIC,10/08/2015,Rent,Estates & Facilities,HM REVENUE & CUSTOMS,18000016552015,"40,765.28",Rent,,
Department of Health,HSCIC,01/03/2015,Rent,Estates & Facilities,LOXTON DEVELOPMENTS LTD,A5131,"40,649.36",Rent,,
Department of Health,HSCIC,01/06/2015,Rent,Estates & Facilities,LOXTON DEVELOPMENTS LTD,A5324,"40,649.36",Rent,,
Department of Health,HSCIC,01/09/2015,Rent,Estates & Facilities,LOXTON DEVELOPMENTS LTD,A5524,"40,649.36",Rent,,
Department of Health,HSCIC,01/12/2015,Rent,Estates & Facilities,LOXTON DEVELOPMENTS LTD,A5699,"40,649.36",Rent,,
Department of Health,HSCIC,01/03/2016,Rent,Estates & Facilities,LOXTON DEVELOPMENTS LTD,A5853,"40,649.36",Rent,,
Department of Health,HSCIC,17/02/2016,Rent,Estates & Facilities,HM REVENUE & CUSTOMS,18000039652015,"40,566.40",Rent,,
Department of Health,HSCIC,30/03/2015,Computer Software/License,IT Services,INSIGHT DIRECT (UK) LTD,2309209,"40,504.80",Computer Software/License,,
Department of Health,HSCIC,14/05/2015,Staff Recruitment Advert,Centralised Services,SJB CORPORATE LTD,AMHS1894,"40,392.00",Staff Recruitment Advert,,
Department of Health,HSCIC,09/06/2015,External Managed Service,Digital Assessment Service,INFERMED LTD,8615,"40,354.32",External Managed Service,,
Department of Health,HSCIC,29/01/2016,Fixtures & Fittings Additions,Capital Expenditure,KIER FACILITIES SERVICES LTD,15070825,"40,302.85",Fixtures & Fittings Additions,,
Department of Health,HSCIC,13/10/2015,Rent,Estates & Facilities,HOME OFFICE,IPSGR0000857,"39,679.00",Rent,,
Department of Health,HSCIC,01/12/2015,Computer Maintenance,General Practice Extraction Service,CSC COMPUTER SCIENCES LTD,5201433320,"39,571.39",Computer Maintenance,,
Department of Health,HSCIC,02/02/2016,Conferences & Seminars,Various,CALDER CONFERENCES LTD,BB3191,"39,506.48",Conferences & Seminars,,
Department of Health,HSCIC,28/04/2015,Travel,Various,CAPITA TRAVEL & EVENTS,IN4275079,"39,325.82",Travel,,
Department of Health,HSCIC,10/03/2015,External Consultancy Fees,Commercial  LSP NME,ERNST & YOUNG LLP,GB10100081747,"39,312.40",External Consultancy Fees,,
Department of Health,HSCIC,15/10/2015,Cleaning,Estates & Facilities,DEPARTMENT OF HEALTH,213288,"39,186.00",Cleaning,,
Department of Health,HSCIC,03/03/2016,Cleaning,Estates & Facilities,DEPARTMENT OF HEALTH,213880,"39,186.00",Cleaning,,
Department of Health,HSCIC,01/03/2016,Rates,Estates & Facilities,LEEDS CITY COUNCIL,90069326301031600000,"38,766.00",Rates,,
Department of Health,HSCIC,23/02/2016,Fixtures & Fittings Additions,Capital Expenditure,SENATOR INTERNATIONAL LTD,S01295702,"38,710.00",Fixtures & Fittings Additions,,
Department of Health,HSCIC,08/02/2016,Legal / Professional Fees,Southern Review Commercial ,ERNST & YOUNG LLP,GB10100100250,"38,629.71",Legal / Professional Fees,,
Department of Health,HSCIC,26/03/2015,Health Surveys,Population Health,NATIONAL CENTRE FOR SOCIAL RESEARCH,51855,"38,600.00",Health Surveys,,
Department of Health,HSCIC,17/07/2015,IT Additions,Capital Expenditure,CSA WAVERLEY LTD,IN661509,"38,501.28",IT Additions,,
Department of Health,HSCIC,30/06/2015,IT Additions,Capital Expenditure,SOFTCAT LTD,INV01177226,"38,374.04",IT Additions,,
Department of Health,HSCIC,08/12/2015,Legal / Professional Fees,Southern Review Commercial ,ERNST & YOUNG LLP,GB10100096544,"37,573.57",Legal / Professional Fees,,
Department of Health,HSCIC,10/02/2016,Computer Software/License,IT Services,COMPUTACENTER (UK) LTD,3780035447,"37,089.77",Computer Software/License,,
Department of Health,HSCIC,04/03/2016,Computer Software/License,IT Services,COMPUTACENTER (UK) LTD,3780036470,"37,089.76",Computer Software/License,,
Department of Health,HSCIC,12/03/2015,External Consultancy Fees,HSCN,MILLAR HUTCHINSON MANAGEMENT CONSULTANTS LTD,11093,"37,025.00",External Consultancy Fees,,
Department of Health,HSCIC,16/04/2015,Rates,Estates & Facilities,SLOUGH BOROUGH COUNCIL,11365397316041500000,"36,362.49",Rates,,
Department of Health,HSCIC,03/03/2016,Legal / Professional Fees,Southern Review Commercial ,ERNST & YOUNG LLP,GB10100101715,"36,301.97",Legal / Professional Fees,,
Department of Health,HSCIC,07/08/2015,Legal / Professional Fees,Southern Review Commercial ,ERNST & YOUNG LLP,GB10100090229,"36,253.58",Legal / Professional Fees,,
Department of Health,HSCIC,07/08/2015,Legal / Professional Fees,Southern Review Commercial ,ERNST & YOUNG LLP,GB10100090221,"36,139.71",Legal / Professional Fees,,
Department of Health,HSCIC,09/02/2016,Rent & Rates,Estates & Facilities,DEPARTMENT OF HEALTH,213774,"35,857.12",Rent & Rates,,
Department of Health,HSCIC,01/03/2016,Rates,Estates & Facilities,LEEDS CITY COUNCIL,90093849401031600000,"35,784.00",Rates,,
Department of Health,HSCIC,24/07/2015,Computer Software/License,IT Operations,SOFTCAT LTD,INV01193034,"35,760.00",Computer Software/License,,
Department of Health,HSCIC,24/07/2015,Computer Software/License,IT Operations,SOFTCAT LTD,INV01193035,"35,760.00",Computer Software/License,,
Department of Health,HSCIC,01/02/2016,Course Fees,Organisation development & training,CAPITA BUSINESS SERVICES LTD,X93777,"35,682.10",Course Fees,,
Department of Health,HSCIC,13/11/2015,External Managed Service,IT Services,RICOH UK LTD,56829159,"35,418.02",External Managed Service,,
Department of Health,HSCIC,31/03/2015,Computer Software Additions,Capital Expenditure,SOFTWARE BOX LTD,INV75825,"35,327.23",Computer Software Additions,,
Department of Health,HSCIC,13/05/2015,Computer Software/License,IT Services,COMPUTACENTER (UK) LTD,3780023974,"35,326.14",Computer Software/License,,
Department of Health,HSCIC,10/06/2015,Computer Software/License,IT Services,COMPUTACENTER (UK) LTD,3780024176,"35,326.14",Computer Software/License,,
Department of Health,HSCIC,09/07/2015,Computer Software/License,IT Services,COMPUTACENTER (UK) LTD,3780025562,"35,326.14",Computer Software/License,,
Department of Health,HSCIC,14/08/2015,Computer Software/License,IT Services,COMPUTACENTER (UK) LTD,3780027043,"35,326.14",Computer Software/License,,
Department of Health,HSCIC,10/08/2015,Health Surveys,Population Health,MARKET & OPINION RESEARCH INTERNATIONAL LTD,15001378,"35,192.00",Health Surveys,,
Department of Health,HSCIC,27/08/2015,External Consultancy Fees,Audit Support Unit,ROYAL COLLEGE OF PHYSICIANS,INV017704,"35,147.00",External Consultancy Fees,,
Department of Health,HSCIC,25/02/2016,Course Fees,Organisation development & training,HEALTH EDUCATION ENGLAND,49296816,"35,000.00",Course Fees,,
Department of Health,HSCIC,28/01/2016,Course Fees,Organisation development & training,CAPITA BUSINESS SERVICES LTD,X93116,"34,811.10",Course Fees,,
Department of Health,HSCIC,14/02/2016,Course Fees,Organisation development & training,CAPITA BUSINESS SERVICES LTD,X95197,"34,756.10",Course Fees,,
Department of Health,HSCIC,28/10/2015,External Managed Service,IT Services,RICOH UK LTD,56816825,"34,742.54",External Managed Service,,
Department of Health,HSCIC,31/03/2015,External Consultancy Fees,Audit Support Unit,ROYAL COLLEGE OF SURGEONS OF ENGLAND,9CEU00303,"34,560.00",External Consultancy Fees,,
Department of Health,HSCIC,20/03/2015,Rent & Rates,Estates & Facilities,DEPARTMENT OF HEALTH,212644,"34,533.71",Rent & Rates,,
Department of Health,HSCIC,30/12/2015,Conferences & Seminars,Various,CALDER CONFERENCES LTD,BB3030,"34,519.75",Conferences & Seminars,,
Department of Health,HSCIC,23/10/2015,Fixtures & Fittings Additions,Capital Expenditure,IMS (OFFICE FITTING & DESIGN) LTD,6166,"34,479.00",Fixtures & Fittings Additions,,
Department of Health,HSCIC,31/01/2016,Workpackage,Customer Relations,ARCADIA CONSULTING LTD,H811,"34,425.00",Workpackage,,
Department of Health,HSCIC,26/03/2015,Secondment,Social care,MANCHESTER CITY COUNCIL,8500434660,"34,414.94",Secondment,,
Department of Health,HSCIC,25/01/2016,Rent & Rates,Estates & Facilities,DEPARTMENT OF HEALTH,213704,"34,257.97",Rent & Rates,,
Department of Health,HSCIC,24/02/2016,Data Services,General Practice Extraction Service,MICROTEST LTD,87729,"34,125.18",Data Services,,
Department of Health,HSCIC,17/06/2015,Rent & Rates,Estates & Facilities,DEPARTMENT OF HEALTH,212926,"34,079.57",Rent & Rates,,
Department of Health,HSCIC,28/10/2015,Data Extracts,Population Health,OFFICE FOR NATIONAL STATISTICS,1030993,"34,000.00",Data Extracts,,
Department of Health,HSCIC,30/03/2015,Computer Software Additions,Capital Expenditure,INFORMED SOLUTIONS LTD,8973,"33,800.00",Computer Software Additions,,
Department of Health,HSCIC,07/07/2015,Computer Software Additions,Capital Expenditure,INFORMED SOLUTIONS LTD,9010,"33,800.00",Computer Software Additions,,
Department of Health,HSCIC,07/04/2015,Audit Fees: Internal,Corporate Assurance,DEPARTMENT OF HEALTH,212710,"33,661.27",Audit Fees: Internal,,
Department of Health,HSCIC,18/11/2015,Contingent Labour,Central services,EXPERIS LTD,73165679,"33,600.00",Contingent Labour,,
Department of Health,HSCIC,14/04/2015,Computer Software/License,IT Services,COMPUTACENTER (UK) LTD,3780021579,"33,138.43",Computer Software/License,,
Department of Health,HSCIC,31/03/2015,Workpackage,HSCN,IDENTITY E2E,100149,"33,005.84",Workpackage,,
Department of Health,HSCIC,26/02/2016,Fixtures & Fittings Additions,Capital Expenditure,KIER FACILITIES SERVICES LTD,15081049,"32,867.18",Fixtures & Fittings Additions,,
Department of Health,HSCIC,22/12/2015,Rent & Rates,Estates & Facilities,DEPARTMENT OF HEALTH,213566,"32,697.94",Rent & Rates,,
Department of Health,HSCIC,01/03/2016,Computer Software/License,IT Services,COMPUTACENTER (UK) LTD,3780036366,"32,477.87",Computer Software/License,,
Department of Health,HSCIC,22/10/2015,Data Services,General Practice Extraction Service,IN PRACTICE SYSTEMS LTD,422476,"32,291.99",Data Services,,
Department of Health,HSCIC,23/12/2015,Course Fees,Organisation development & training,DEPARTMENT OF HEALTH,213581,"32,069.62",Course Fees,,
Department of Health,HSCIC,30/06/2015,Computer Software/License,IT Services,QUICKSILVA LTD,1506019,"32,000.00",Computer Software/License,,
Department of Health,HSCIC,30/04/2015,Course Fees,Organisation development & training,CAPITA BUSINESS SERVICES LTD,A59504,"31,895.47",Course Fees,,
Department of Health,HSCIC,30/04/2015,Data Lines,IT Services,BT PLC,VP26983270I1020,"31,783.32",Data Lines,,
Department of Health,HSCIC,11/12/2015,Contingent Labour,Central services,EXPERIS LTD,73168318,"31,772.58",Contingent Labour,,
Department of Health,HSCIC,19/06/2015,Computer Software/License,IT Services,INOVEM LTD,1502,"31,644.00",Computer Software/License,,
Department of Health,HSCIC,30/06/2015,Computer Maintenance,IT Services,ANS GROUP PLC,INV036472,"31,500.00",Computer Maintenance,,
Department of Health,HSCIC,29/07/2015,Secondment,Board and Executive Office costs,DEPARTMENT OF HEALTH,213075,"31,388.39",Secondment,,
Department of Health,HSCIC,16/11/2015,Conferences & Seminars,Various,GLASGOWS,15071,"31,306.12",Conferences & Seminars,,
Department of Health,HSCIC,31/07/2015,Computer Hardware,IT Services,PROBRAND LTD,OPI516097,"31,124.33",Computer Hardware,,
Department of Health,HSCIC,30/11/2015,Computer Hardware,IT Services,PROBRAND LTD,OPI526664,"31,039.84",Computer Hardware,,
Department of Health,HSCIC,10/03/2015,Secondment,Board and Executive Office costs,DEPARTMENT OF HEALTH,212506,"30,978.43",Secondment,,
Department of Health,HSCIC,30/10/2015,Computer Hardware,IT Services,PROBRAND LTD,OPI523934,"30,932.40",Computer Hardware,,
Department of Health,HSCIC,05/01/2016,Computer Software/License,IT Services,COMPUTACENTER (UK) LTD,3780034105,"30,789.61",Computer Software/License,,
Department of Health,HSCIC,27/11/2015,Course Fees,Organisation development & training,DEPARTMENT OF HEALTH,213459,"30,608.26",Course Fees,,
Department of Health,HSCIC,06/10/2015,Course Fees,Infrastructure,INTERNATIONAL INFORMATION SYSTEMS SECURITY CERTIFICATION CONSORTIUM LTD,INV740303JFLKBR,"30,398.00",Course Fees,,
Department of Health,HSCIC,21/07/2015,Computer Software/License,IT Services,PING IDENTITY CORPORATION,INV0009762,"30,211.78",Computer Software/License,,
Department of Health,HSCIC,29/02/2016,IT Additions,Capital Expenditure,COMPUTACENTER (UK) LTD,3880775158,"30,170.06",IT Additions,,
Department of Health,HSCIC,12/02/2016,IT Additions,Capital Expenditure,MCSA GROUP LTD,IN662596,"30,097.00",IT Additions,,
Department of Health,HSCIC,06/05/2015,Contract Other External,Workforce & facilities,ASCKEY DATA SERVICES LTD,5099,"30,000.00",Contract Other External,,
Department of Health,HSCIC,05/08/2015,Computer Software/License,IT Services,COMPUTACENTER (UK) LTD,3880589083,"30,000.00",Computer Software/License,,
Department of Health,HSCIC,30/03/2015,External Managed Service,Digital Assessment Service,INFERMED LTD,5615,"30,000.00",External Managed Service,,
Department of Health,HSCIC,07/09/2015,Computer Software/License,IT Services,COMPUTACENTER (UK) LTD,3780028249,"29,939.98",Computer Software/License,,
Department of Health,HSCIC,14/10/2015,Computer Maintenance,IT Services,COMPUTACENTER (UK) LTD,3780029756,"29,939.98",Computer Maintenance,,
Department of Health,HSCIC,10/11/2015,Computer Maintenance,IT Services,COMPUTACENTER (UK) LTD,3780031155,"29,939.98",Computer Maintenance,,
Department of Health,HSCIC,03/12/2015,Computer Maintenance,IT Services,COMPUTACENTER (UK) LTD,3780032565,"29,939.98",Computer Maintenance,,
Department of Health,HSCIC,28/08/2015,Computer Hardware,IT Services,PROBRAND LTD,OPI518195,"29,849.59",Computer Hardware,,
Department of Health,HSCIC,10/03/2015,Other Agency Staff,Communications and External Relations ,DEPARTMENT OF HEALTH,212499,"29,780.64",Other Agency Staff,,
Department of Health,HSCIC,10/03/2016,Computer Maintenance,IT Services,SILVERLINK SOFTWARE LTD,201922,"29,750.16",Computer Maintenance,,
Department of Health,HSCIC,24/07/2015,Data Services,General Practice Extraction Service,PRICEWATERHOUSE COOPERS,1354410541,"29,681.50",Data Services,,
Department of Health,HSCIC,06/11/2015,Secondment,Information Assurance Special Projects,DEPARTMENT OF HEALTH,213368,"29,611.92",Secondment,,
Department of Health,HSCIC,09/03/2016,Secondment,Operations & Assurance Services,DEPARTMENT OF HEALTH,213937,"29,611.92",Secondment,,
Department of Health,HSCIC,23/07/2015,Secondment,Information Assurance Special Projects,DEPARTMENT OF HEALTH,213034,"29,611.91",Secondment,,
Department of Health,HSCIC,19/06/2015,External Consultancy Fees,Audit Support Unit,ROYAL COLLEGE OF GENERAL PRACTITIONERS,INVGEN005852,"29,529.60",External Consultancy Fees,,
Department of Health,HSCIC,09/09/2015,External Consultancy Fees,Audit Support Unit,ROYAL COLLEGE OF GENERAL PRACTITIONERS,INVOTH001604,"29,529.60",External Consultancy Fees,,
Department of Health,HSCIC,08/12/2015,External Consultancy Fees,Audit Support Unit,ROYAL COLLEGE OF GENERAL PRACTITIONERS,INVOTH001759,"29,529.60",External Consultancy Fees,,
Department of Health,HSCIC,22/03/2016,External Consultancy Fees,Audit Support Unit,ROYAL COLLEGE OF GENERAL PRACTITIONERS,INVOTH001968,"29,529.60",External Consultancy Fees,,
Department of Health,HSCIC,30/10/2015,Rent,Estates & Facilities,BRITISH MEDICAL ASSOCIATION (BMA),I0070302,"29,333.33",Rent,,
Department of Health,HSCIC,05/08/2015,Data Services,General Practice Extraction Service,MICROTEST LTD,86457,"29,247.54",Data Services,,
Department of Health,HSCIC,31/03/2015,Computer Software/License,Prescribing & primary care services,SOFTCAT LTD,INV01124316,"29,119.00",Computer Software/License,,
Department of Health,HSCIC,12/02/2016,Fixtures & Fittings Additions,Capital Expenditure,SENATOR INTERNATIONAL LTD,S01293705,"29,113.00",Fixtures & Fittings Additions,,
Department of Health,HSCIC,12/08/2015,Other Agency Staff,Various,BROOK STREET (UK) LTD,30321433,"28,994.00",Other Agency Staff,,
Department of Health,HSCIC,31/01/2016,Computer Maintenance,IT Services,GOSS INTERACTIVE LTD,16310,"28,950.00",Computer Maintenance,,
Department of Health,HSCIC,24/01/2016,Course Fees,Organisation development & training,CAPITA BUSINESS SERVICES LTD,X92755,"28,781.87",Course Fees,,
Department of Health,HSCIC,10/11/2015,Computer Software/License,IT Services,INSIGHT DIRECT (UK) LTD,2638282,"28,753.67",Computer Software/License,,
Department of Health,HSCIC,02/02/2016,External Consultancy Fees,Estates & Facilities,2T SECURITY LTD,91,"28,708.17",External Consultancy Fees,,
Department of Health,HSCIC,08/01/2016,Workpackage,Customer Relations,ARCADIA CONSULTING LTD,H807,"28,550.00",Workpackage,,
Department of Health,HSCIC,21/12/2014,Travel,Various,CAPITA TRAVEL & EVENTS,IN4009430,"28,546.32",Travel,,
Department of Health,HSCIC,01/06/2015,Rent,Estates & Facilities,PETIT PAPILLON MANAGEMENT LTD,10602,"28,457.00",Rent,,
Department of Health,HSCIC,09/12/2015,Rent,Estates & Facilities,PETIT PAPILLON MANAGEMENT LTD,11367,"28,457.00",Rent,,
Department of Health,HSCIC,04/03/2016,Rent,Estates & Facilities,PETIT PAPILLON MANAGEMENT LTD,11645,"28,457.00",Rent,,
Department of Health,HSCIC,07/05/2015,Computer Software Additions,Capital Expenditure,SOFTWARE BOX LTD,INV76428,"28,445.32",Computer Software Additions,,
Department of Health,HSCIC,30/09/2015,Computer Hardware,IT Services,PROBRAND LTD,OPI520592,"28,305.71",Computer Hardware,,
Department of Health,HSCIC,25/09/2015,Fixtures & Fittings Additions,Capital Expenditure,FAITHFUL AND GOULD LTD,16026346,"28,200.15",Fixtures & Fittings Additions,,
Department of Health,HSCIC,22/11/2015,Course Fees,Various,CAPITA BUSINESS SERVICES LTD,X87064,"28,192.08",Course Fees,,
Department of Health,HSCIC,19/08/2015,Other Agency Staff,Various,BROOK STREET (UK) LTD,30332073,"28,073.79",Other Agency Staff,,
Department of Health,HSCIC,28/11/2015,Travel,Various,CAPITA TRAVEL & EVENTS,IN4807065,"28,034.17",Travel,,
Department of Health,HSCIC,06/05/2015,Other Agency Staff,Various,BROOK STREET (UK) LTD,30154715,"27,983.33",Other Agency Staff,,
Department of Health,HSCIC,04/06/2015,External Managed Service,Digital Assessment Service,INFERMED LTD,8515,"27,742.00",External Managed Service,,
Department of Health,HSCIC,03/12/2014,Staff Consultancy & Support,Technical Architecture,CAPITA BUSINESS SERVICES LTD,LO10018072,"27,735.96",Staff Consultancy & Support,,
Department of Health,HSCIC,29/05/2015,Computer Hardware,IT Services,PROBRAND LTD,OPI51012S,"27,728.62",Computer Hardware,,
Department of Health,HSCIC,29/05/2015,Rent,Estates & Facilities,BRITISH MEDICAL ASSOCIATION (BMA),I0068183,"27,400.00",Rent,,
Department of Health,HSCIC,28/08/2015,Rent,Estates & Facilities,BRITISH MEDICAL ASSOCIATION (BMA),I0069451,"27,400.00",Rent,,
Department of Health,HSCIC,30/11/2015,Rent,Estates & Facilities,BRITISH MEDICAL ASSOCIATION (BMA),I0070985,"27,400.00",Rent,,
Department of Health,HSCIC,02/02/2016,External Consultancy Fees,Estates & Facilities,2T SECURITY LTD,90,"27,353.60",External Consultancy Fees,,
Department of Health,HSCIC,16/03/2016,Other Agency Staff,Various,BROOK STREET (UK) LTD,30654807,"27,321.23",Other Agency Staff,,
Department of Health,HSCIC,01/04/2015,Other Agency Staff,Various,BROOK STREET (UK) LTD,30993687,"27,194.71",Other Agency Staff,,
Department of Health,HSCIC,31/03/2015,Computer Software/License,IT Services,INSIGHT DIRECT (UK) LTD,2311141,"27,171.82",Computer Software/License,,
Department of Health,HSCIC,23/03/2016,Computer Software/License,IT Services,BYTES SOFTWARE SERVICES LTD,441560,"26,594.29",Computer Software/License,,
Department of Health,HSCIC,03/12/2015,Secondment,Cross Government IT,NHS ENGLAND,7000017637,"26,415.00",Secondment,,
Department of Health,HSCIC,15/09/2015,Rent & Rates,Estates & Facilities,NHS PROPERTY SERVICES LTD,48370020,"26,187.57",Rent & Rates,,
Department of Health,HSCIC,30/11/2015,Workpackage,Operations & Technical Services,MOZAIC SERVICES LTD,33,"25,920.00",Workpackage,,
Department of Health,HSCIC,01/08/2015,Staff Bike Scheme,Corporate,SME HCI LTD,124484,"25,851.85",Staff Bike Scheme,,
Department of Health,HSCIC,29/09/2015,Conferences & Seminars,Various,CALDER CONFERENCES LTD,B2673,"25,831.68",Conferences & Seminars,,
Department of Health,HSCIC,31/01/2015,Data Services,General Practice Extraction Service,IN PRACTICE SYSTEMS LTD,414606,"25,791.00",Data Services,,
Department of Health,HSCIC,28/04/2015,IT Additions,Capital Expenditure,PROBRAND LTD,OPI507089,"25,740.26",IT Additions,,
Department of Health,HSCIC,14/12/2014,Travel,Various,CAPITA TRAVEL & EVENTS,IN3988150,"25,645.63",Travel,,
Department of Health,HSCIC,03/03/2016,Audit Fees: Ext non-stat,Finance,DEPARTMENT OF HEALTH,213875,"25,571.73",Audit Fees: Ext non-stat,,
Department of Health,HSCIC,29/02/2016,Computer Hardware,IT Services,SPECIALIST COMPUTER CENTRES PLC,OPM128915,"25,479.24",Computer Hardware,,
Department of Health,HSCIC,09/03/2016,Other Agency Staff,Various,BROOK STREET (UK) LTD,30644222,"25,384.92",Other Agency Staff,,
Department of Health,HSCIC,02/07/2015,Staff Recruitment Advert,Operations & Technical Services,SJB CORPORATE LTD,MTHS1948,"25,365.00",Staff Recruitment Advert,,
Department of Health,HSCIC,30/10/2015,IT Additions,Capital Expenditure,SOFTCAT LTD,INV01255124,"25,350.75",IT Additions,,
Department of Health,HSCIC,03/03/2016,Computer Software/License,IT Services,SOFTCAT LTD,INV01329003,"25,200.00",Computer Software/License,,
Department of Health,HSCIC,31/03/2015,Computer Software/License,IT Services,SOFTCAT LTD,INV01125895,"25,150.00",Computer Software/License,,
Department of Health,HSCIC,18/03/2016,Workpackage,"Architecture, Standards & Innovation",PROFESSIONAL RECORD STANDARDS BODY,23,"25,087.20",Workpackage,,
Department of Health,HSCIC,21/03/2016,Workpackage,"Architecture, Standards & Innovation",PROFESSIONAL RECORD STANDARDS BODY,25,"25,087.20",Workpackage,,
Department of Health,HSCIC,06/08/2015,Computer Maintenance,General Practice Extraction Service,CSC COMPUTER SCIENCES LTD,5201419491,"25,000.00",Computer Maintenance,,
Department of Health,HSCIC,18/09/2015,Conferences & Seminars,LSP Directorate Central Services,DIGITAL HEALTH INTELLIGENCE LTD,1558,"25,000.00",Conferences & Seminars,,
Department of Health,HSCIC,29/08/2013,Course Fees,ASCC for South,OXFORD SAID BUSINESS SCHOOL,35260,"25,000.00",Course Fees,,
Department of Health,HSCIC,21/08/2015,Course Fees,Spine 2 ,OXFORD SAID BUSINESS SCHOOL,39541,"25,000.00",Course Fees,,
